Cogmind - Beta 13 @@@ ROGUE MODE // 2024.06.23 @ 11:03:55 Player: procell Result: Destroyed by G-47 Trooper with Particle Gun Performance ------------- Evolutions (0) 0 Regions Visited (1) 200 Robots Destroyed (15) 75 Value Destroyed (385) 385 Prototype IDs (0) 0 Alien Tech Used (0) 0 Bonus (0) 0 TOTAL SCORE: 660 Bonus ------- None Cogmind --------- Core Integrity 0/250 Matter 182/300 Energy 90/100 System Corruption 0% Temperature Hot (298) Movement Rolling (135) Ox3 Location -10/Materials Parts ------- > --- POWER (1) -------- (None) > --- PROPULSION (2) --- Armored Wheel > --- UTILITY (2) ------ High-capacity Storage Unit > --- WEAPON (2) ------- Medium Laser > --- INVENTORY (20) --- Ion Engine Ion Engine Armored Wheel Armored Wheel Heat Sink Large Storage Unit Large Storage Unit Structural Scanner Visual Processing Unit Terrain Scanner ECM Suite Core Shielding Core Shielding Shield Generator Shield Generator Beam Cannon Beam Cannon Grenade Launcher Peak State ------------ > --- POWER ------------ Ion Engine > --- PROPULSION ------- Armored Wheel Armored Wheel > --- UTILITY ---------- High-capacity Storage Unit Seismic Detector > --- WEAPON ----------- Small Laser Assault Rifle > --- INVENTORY -------- Light Ion Engine Aluminum Leg Wheel Wheel Wheel Heat Sink Heat Sink Large Storage Unit Structural Scanner Terrain Scanner Seismic Detector ECM Suite Core Shielding Core Shielding Medium Laser Medium Laser Beam Cannon Beam Cannon Beam Cannon Grenade Launcher [Rating: 11] Favorites ----------- Power Ion Engine Engine Ion Engine Propulsion Armored Wheel Wheel Armored Wheel Utility High-capacity Storage Unit Device Seismic Detector Storage High-capacity Storage Unit Weapon Assault Rifle Energy Gun Small Laser Ballistic Gun Assault Rifle Build | -11 -10 ------- Run | Yrd Mat Slots Evolved . | . . Power . | . . Propulsion . | . . Utility . | . . Weapon . | . . Parts Attached 18 | 8 10 Power 2 | 1 1 Engine 2 | 1 1 Core . | . . Reactor . | . . Propulsion 5 | 2 3 Treads . | . . Leg . | . . Wheel 5 | 2 3 Hover . | . . Flight . | . . Utility 4 | 3 1 Device 3 | 3 . Storage 1 | . 1 Processor . | . . Hackware . | . . Protection . | . . Artifact . | . . Weapon 7 | 2 5 Energy Gun 4 | 1 3 Energy Cannon . | . . Ballistic Gun 3 | 1 2 Ballistic Cannon . | . . Launcher . | . . Special Weapon . | . . Impact Weapon . | . . Slashing Weapon . | . . Piercing Weapon . | . . Special Melee Weapon . | . . Unidentified Prototypes . | . . Parts Lost 6 | . 6 Power 1 | . 1 Propulsion 1 | . 1 Utility 1 | . 1 Weapon 3 | . 3 Highest Loss Streak 6 | . 6 To Critical Strikes . | . . Average Slot Usage (%) 97 | . 97 Engine 13 | . 13 Wheel 27 | . 27 Device 13 | . 13 Storage 13 | . 13 Energy Gun 8 | . 8 Ballistic Gun 19 | . 19 Naked Turns . | . . Heaviest Build 50 | 8 50 Greatest Support 24 | 20 24 Greatest Overweight (x) 4 | . 4 Average Overweight (x) 1 | . 1 Largest Inventory Capacity 20 | 5 20 Average Capacity 18 | 5 19 Most Carried 20 | 5 20 Average Carried 15 | 2 16 Final Capacity 20 | 5 20 Final Carried 18 | 5 18 Class Distribution -------------------- 100% | Mutant Dominant Class ---------------- Mutant | -10/Materials Resources | -11 -10 ----------- Run | Yrd Mat Matter Collected 548 | 313 235 Remotely . | . . Salvage Created 494 | 88 406 Parts 33 | 9 24 Haulers Intercepted 1 | . 1 Recyclers Shooed . | . . Parts Field Recycled . | . . Retrieved Matter . | . . Parts Self-Destructed . | . . Prevented . | . . Kills | -11 -10 ------- Run | Yrd Mat Combat Hostiles Destroyed 9 | 1 8 Guns 8 | 1 7 Classes Destroyed 5 | 2 3 Builder 1 | . 1 Tunneler 2 | 2 . Hauler 1 | . 1 Watcher 2 | . 2 Grunt 9 | 1 8 Best Kill Streak 3 | 3 2 Combat Bots Only 2 | 1 2 Max Kills in Single Turn 1 | 1 1 Gunslinging . | . . Exploded . | . . Melee . | . . Uniques/NPCs Destroyed . | . . Combat | -11 -10 -------- Run | Yrd Mat Hostile Shots Fired 80 | 10 70 Missed 16 | 3 13 Damage Taken 909 | 76 833 Core 250 | 22 228 Absorbed by Shields . | . . Core Remaining (%) 91 | 91 . Volleys Fired 72 | 11 61 Largest 2 | 2 2 Hottest 100 | 60 100 Shots Fired 139 | 22 117 Gun 139 | 22 117 Cannon . | . . Launcher . | . . Special . | . . Kinetic 89 | 11 78 Thermal 50 | 11 39 Explosive . | . . Electromagnetic . | . . Robot Hit Streak 18 | 13 18 Robot Miss Streak 3 | 2 3 Penetration Max . | . . Secondary Targets 1 | . 1 Max Gunslinging Chain 1 | . 1 Shots Hit Robots 95 | 16 79 Core Hits 29 | 4 25 Critical Kills . | . . Critical Parts Destroyed 1 | . 1 Critical Strikes 5 | . 5 Burn 4 | . 4 Destroy 1 | . 1 Melee Attacks . | . . Impact . | . . Slashing . | . . Piercing . | . . Sneak Attacks . | . . Combat Hostiles . | . . Follow-up Attacks . | . . Damage Inflicted 1198 | 190 1008 Guns 1198 | 190 1008 Cannons . | . . Explosions . | . . Melee . | . . Ramming . | . . Kinetic 729 | 90 639 Thermal 469 | 100 369 Explosive . | . . Electromagnetic . | . . Impact . | . . Slashing . | . . Piercing . | . . Highest Corruption . | . . Average Corruption . | . . Corruption Purged . | . . Corruption Blocked . | . . Overload Shots . | . . Overflow Damage . | . . Projectiles . | . . Explosions . | . . Melee . | . . Knockbacks . | . . Impact . | . . Kinetic . | . . Secondary . | . . Self-Inflicted Damage . | . . Shots . | . . Rammed . | . . Targets Rammed . | . . Kicked . | . . Crushed . | . . Highest Temperature 447 | 42 447 Average Temperature 134 | 26 166 Received Heat Transfer 516 | 42 474 Effects 6 | . 6 Shutdowns 1 | . 1 Matter Decay 1 | . 1 Damage (minor) 1 | . 1 Damage (major) 3 | . 3 Siege Activations . | . . Robots Corrupted . | . . Combat Hostiles . | . . Parts Fried . | . . Impact Corruptions . | . . Robots Melted 1 | . 1 Combat Hostiles 1 | . 1 Parts Melted 1 | . 1 Heat Transferred 1512 | 225 1287 Parts Sabotaged . | . . Parts Stolen . | . . Parts Stripped . | . . Power Chain Reactions . | . . Alert | -11 -10 ------- Run | Yrd Mat Peak Influence 145 | 30 145 Initial 19 | . 19 Average 75 | 8 83 Maximum Alert Level . | . . Low Security (%) 100 | 100 100 Level 1 . | . . Level 2 . | . . Level 3 . | . . Level 4 . | . . Level 5 . | . . High Security . | . . Max Security . | . . Squads Dispatched 1 | . 1 Investigation . | . . Extermination . | . . Reinforcement 1 | . 1 Assault . | . . Garrison . | . . Intercept . | . . Searches Triggered . | . . Construction Impeded . | . . Haulers Reinforced . | . . Active Scanning Responses . | . . Cargo Convoy Interrupts . | . . Stealth | -11 -10 --------- Run | Yrd Mat Distress Signals 2 | . 2 Communications Jammed . | . . Distress Signals . | . . Times Spotted 24 | 1 23 Peak Tracking Total 5 | 1 5 Tactical Retreats 1 | . 1 Traps | -11 -10 ------- Run | Yrd Mat Traps Triggered 1 | . 1 Indirectly . | . . Trap Hack Attempts . | . . Triggered . | . . Disarmed . | . . Reprogrammed . | . . Reused . | . . Traps Extracted . | . . Installed . | . . Triggered . | . . Machines | -11 -10 ---------- Run | Yrd Mat Machines Disabled . | . . Max in Single Turn . | . . Machines Repaired . | . . Machines Dismantled . | . . Machines Sabotaged . | . . Overloaded Fab Kills . | . . Hacking | -11 -10 --------- Run | Yrd Mat Machines Accessed 3 | . 3 Terminals 2 | . 2 Fabricators . | . . Repair Stations . | . . Recycling Units 1 | . 1 Scanalyzers . | . . Garrison Access . | . . Total Hacks 4 | . 4 Successful 1 | . 1 Failed 3 | . 3 Catastrophic . | . . Database Lockouts . | . . Manual 3 | . 3 Terminals 3 | . 3 Fabricators . | . . Repair Stations . | . . Recycling Units 1 | . 1 Scanalyzers . | . . Garrison Access . | . . Terminal Hacks . | . . Fabricator Hacks . | . . Repair Station Hacks . | . . Recycling Unit Hacks 1 | . 1 Report Inventory 1 | . 1 Scanalyzer . | . . Garrison Access Hacks . | . . Unauthorized Hacks . | . . Terminals . | . . Fabricators . | . . Repair Stations . | . . Recycling Units . | . . Scanalyzers . | . . Garrison Access . | . . Data Cores Recovered . | . . Used . | . . Hacking Detections 3 | . 3 Full Trace Events . | . . Feedback Events . | . . Feedback Blocked . | . . Robot Schematics Acquired . | . . Robots Built . | . . Authchips . | . . Time . | . . Total Robot Build Rating . | . . Part Schematics Acquired . | . . Parts Built . | . . Authchips . | . . Time . | . . Total Part Build Rating . | . . Parts Repaired . | . . Time . | . . Parts Recycled . | . . Recycled Matter . | . . Retrieved Matter . | . . Retrieved Components . | . . Parts Scanalyzed . | . . Part Schematics Acquired . | . . Parts Damaged . | . . Bothacking | -11 -10 ------------ Run | Yrd Mat Used RIF Installer . | . . Robots Hacked . | . . Non-combat . | . . Combat . | . . Robot Hacks Applied . | . . Relay Couplers Released . | . . Fabnet Peak Effective % . | . . Robots Rewired . | . . Allies Hacked . | . . Hacks Repelled . | . . Allies | -11 -10 -------- Run | Yrd Mat Total Allies . | . . Largest Group . | . . Highest-Rated Group . | . . Highest-Rated Ally . | . . Total Orders . | . . Ally Attacks . | . . Total Damage . | . . Kills . | . . Allies Corrupted . | . . Allies Melted . | . . Intel | -11 -10 ------- Run | Yrd Mat Robot Analysis Total . | . . Derelict Logs Recovered . | . . Drone Launches . | . . Drone Recoveries . | . . Exploration | -11 -10 ------------- Run | Yrd Mat Turns Passed 1066 | 115 951 Spaces Moved 609 | 88 521 Core 16 | 16 . Treads . | . . Legs . | . . Wheels 593 | 72 521 Hover . | . . Flight . | . . Fastest Speed 50 | 50 80 Average Speed 109 | 74 115 Slowest Speed 140 | 80 140 Overloaded Moves . | . . Propulsion Burnouts . | . . Robots Hopped . | . . Cave-ins Triggered . | . . Exploration Rate (%) 43 | 6 80 Regions Visited 1 Branch Regions . Pre-discovered Areas . | . . Known Exits Taken . | . . Unknown Exits Taken 1 | 1 . Scrap Searched . | . . Spaces Dug . | . . Terrain Destroyed . | . . Melee . | . . Projectile . | . . AOE . | . . Terrain Rammed . | . . Walls Destroyed . | . . Machines Disabled . | . . Actions | -11 -10 --------- Run | Yrd Mat Total 869 | 111 758 Wait 127 | . 127 Move 608 | 87 521 Hop . | . . Pick Up 30 | 5 25 Fast Attach 11 | 7 4 Attach 2 | . 2 Detach . | . . Swap 5 | 1 4 Drop 14 | . 14 Fire 72 | 11 61 Melee . | . . Ram . | . . Kick . | . . Crush . | . . Escape Stasis . | . . Rewire . | . . Trap . | . . Miscellaneous . | . . Route ------- -11/Scrapyard -10/Materials (discovered 4 exits: [*Mat x2] / [*Min x2]) History --------- Turn | Location | Event 2 | -11/Scrapyard | Met Revision 17 52 | -11/Scrapyard | Discovered new exit (range 8) 116 | -11/Scrapyard | Entered Materials 319 | -10/Materials | Build established: Mutant 356 | -10/Materials | Discovered new exit (range 16) 486 | -10/Materials | Discovered new exit (range 14) 630 | -10/Materials | Discovered new exit (range 14) 842 | -10/Materials | Discovered new exit (range 16) 1030 | -10/Materials | Core integrity fell below 50% 1048 | -10/Materials | Core integrity fell below 20% 1067 | -10/Materials | Destroyed by G-47 Trooper with Particle Gun Last Messages --------------- G-47 Trooper overheating. G-47 Trooper suffers critical hit (Burn). G-47 Trooper destroyed. Switching to secondary target: G-47 Trooper. G-47 Trooper heat spikes uncontrollably. G-47 Trooper overheating. G-34 Mercenary suffers critical hit (Burn). G-47 Trooper overheating. Overheating: Ion Engine damaged (-15). Power failure, Ion Engine shutdown. Ion Engine destroyed. Overheating: Med. Laser damaged (-11). Overheating: Med. Laser damaged (-17). Overheating: Hcp. Storage Unit damaged (-263). G-34 Mercenary overheating. Overheating: Matter decay (-49). Med. Laser destroyed. G-34 Mercenary heat damages core (-3). Ion Engine melted. K-01 Serf collects debris. Map ----- +----------------------------------------------------+ | ???########## #??# #???????????# | | ???# =#[ #??# """ #???????????# | | ???# """ += #??# """ #??????????## | | ???# """ [# #??# """ #??????????# | | ???# """ # #??# #??????????# | | ???# # #??# #??????????# | | ???# """ # #######+###??????????# | | ???# """ # #??????????# | | ???# """ # ##########?## | | ????? # T """ # #??# | | ????######### """ # #??# | | ????????#]] """ # #??# | | ????????#]] """ # #### | | ????????#]] =%* + + | | ????????#]] # #### | | ????????#!! ######+####+# #??### | | ????????#!! ## # #????# | | ????????##### ## """ """ # ###### | | ????????????# ## """ """ ########## | | ????????????# ## """ """ #????????# | | ????????????# ## #????????# | | ????????????# #############????????# | | ????????????# ## ! #?????????# | | ???????????## ## #?????????# | | ???????????# # """ #?????????# | | ???????????# #@ """ #?????????# | | ???????????# %gk" " """ #?????????###### | | ???????????# !#%"R" #????????????# | | ???????????# # """ #????????????# | | ???????????# # #?????#??????# | | ???????????# ###########?????# ##???# | | ???????????# #???????????????# ##?# | | ???????????#^^ #????????????????? ?## | | ???????????# #?????????########## #### | | ??????????? #?????????# + | | ??????????? +?????????# # | | ??????????? ??????????# # | | ?????????? ??????????# # | | ?????????? ??????????# + | | ?????????? ??????????# # | | ???????????? ??????????# ## ### | | ?????????????????????????# ## #?# | | ?????????????????????????# ## #?# | | ?????????????????????????###########+### | | ??????????????????????????????# # | | ??????????????????????????????# # | | ??????????????????????????????# # | | ??????????????????????????????# # | | ??????????????????????????????# = + | | ??????????????????????????????# # | +----------------------------------------------------+ Best States ------------- Heat Dissipation 35 Energy Generation 10 Energy Capacity 250 Matter Stores 300 Matter Capacity 300 Sight Range 16 Terrain Scan Density 10 Evasion (%) 50 Item Schematics ----------------- None Robot Schematics ------------------ None Fabricated ------------ Nothing Alien Tech Used ----------------- None Achievements -------------- None Challenges ------------ None Game ------ Seed ExplosiveStormLaser Manual? 0 Play Time 00:20:02 Cumulative 3.9 hours Start 2024.06.23 @ 10:44:49 End 2024.06.23 @ 11:03:55 Sessions 1 Manual Loads 0 Difficulty Rogue Special Mode None Game No. 3 Rogue 3 Adventurer 0 Explorer 0 Win Type - Total 0 Types 0/0/0/0/0/0/0/0/0 Lore% 4 Gallery% 7 Achievement% 11 Wizard Run 0 Options --------- Layout 1 ASCII 0 Keyboard 0 Movement Mouse Keybinds 0 Fullscreen 1 Font 24/Smallcaps Map View 50x35 Zoom Use 0% Tactical HUD 0 Map Filters NONE Filters NONE Steam 1 RUN: 73dbc8ac-ca0e-4a9a-a42b-6d88dab51c6e